[Event "FIDE WCCC Open-08 2024"]
[Site "Montesilvano"]
[Date "2024.11.20"]
[Round "6.34"]
[White "Juzbasic, Marul"]
[Black "Vrsalovic Acuna. Stjepan Anton"]
[Result "1/2-1/2"]
[ECO "B50"]
[WhiteElo "1726"]
[BlackElo "1452"]
[Annotator "NA RC"]
[PlyCount "60"]
[EventDate "2024.11.18"]
[EventType "swiss"]
[EventCountry "ITA"]
[SourceTitle "playchess.com"]
[Source "ChessBase"]
[SourceQuality "1"]
[TimeControl "5400+30"]

1. e4 {[%emt 0:00:05]} c5 {[%emt 0:00:16]} 2. Nf3 {[%emt 0:00:17]} d6 {[%emt 0:00:30]} 3. Nc3 {[%emt 0:00:52]} Nf6 {[%emt 0:01:18]} 4. Bc4 {[%emt 0:02:39]} e6 {[%emt 0:03:29]} 5. Bb3 {[%emt 0:06:59]} a6 {[%emt 0:01:41]} 6. a4 {[%emt 0:05:10]} Be7 {[%emt 0:01:35]} 7. d3 {[%emt 0:01:59]} O-O {[%emt 0:08:25]} 8. O-O {[%emt 1:16:29]} Qc7 {[%emt 0:04:48]} 9. Re1 {[%emt 0:00:00]} Nbd7 {[%emt 0:01:22]} 10. h3 {[%emt 0:01:00]} Ne5 {[%emt 0:04:45]} 11. Nxe5 {[%emt 0:00:00]} dxe5 {[%emt 0:02:58]} 12. Rf1 {[%emt 0:01:00]} Bd7 {[%emt 0:07:34]} 13. f4 {[%emt 0:00:00]} Bd6 {[%emt 0:03:08]} 14. Qf3 {[%emt 0:00:00]} exf4 {[%emt 0:01:42]} 15. Bxf4 {[%emt 0:00:00]} Bxf4 {[%emt 0:00:15]} 16. Qxf4 {[%emt 0:00:00]} Qxf4 {[%emt 0:54:44]} 17. Rxf4 {[%emt 0:00:00]} e5 {[%emt 0:00:00]} 18. Rf3 {[%emt 0:00:00]} Be6 {[%emt 0:00:00]} 19. Ra3 {[%emt 0:00:00]} Bd7 {[%emt 0:00:00]} 20. Rg3 {[%emt 0:00:00]} h6 {[%emt 0:00:00]} 21. Nd5 {[%emt 0:00:00]} Nxd5 {[%emt 0:00:00]} 22. Bxd5 {[%emt 0:00:00]} Rab8 {[%emt 0:00:00]} 23. b3 {[%emt 0:00:00]} a5 {[%emt 0:00:00]} 24. c4 {[%emt 0:06:00]} b6 {[%emt 0:00:00]} 25. Ra1 {[%emt 0:00:00]} Kh7 {[%emt 0:00:00]} 26. Rf1 {[%emt 0:00:00]} f6 {[%emt 0:00:00]} 27. Rgf3 {[%emt 0:00:00]} Rbd8 {[%emt 0:00:00]} 28. Kh2 {[%emt 0:00:00]} Bc8 {[%emt 0:00:00]} 29. g4 {[%emt 0:00:00]} Rd6 {[%emt 0:00:00]} 30. Kg3 {[%emt 0:00:00]} g5 {[%emt 0:00:00]} 1/2-1/2

[Event "FIDE WCCC Open-08 2024"]
[Site "Montesilvano"]
[Date "2024.11.20"]
[Round "6.35"]
[White "Reclik, Jakub"]
[Black "Arsenijevic, Matija"]
[Result "1/2-1/2"]
[ECO "B12"]
[WhiteElo "1458"]
[BlackElo "1700"]
[Annotator "NA RC"]
[PlyCount "77"]
[EventDate "2024.11.18"]
[EventType "swiss"]
[EventCountry "ITA"]
[SourceTitle "playchess.com"]
[Source "ChessBase"]
[SourceQuality "1"]
[TimeControl "5400+30"]

1. e4 {[%emt 0:00:01]} c6 {[%emt 0:00:08]} 2. d4 {[%emt 0:00:13]} d5 {[%emt 0:00:04]} 3. e5 {[%emt 0:00:19]} Bf5 {[%emt 0:00:06]} 4. Nf3 {[%emt 0:00:15]} e6 {[%emt 0:00:22]} 5. Be2 {[%emt 0:00:27]} c5 {[%emt 0:00:41]} 6. c3 {[%emt 0:00:17]} Nc6 {[%emt 0:00:31]} 7. O-O {[%emt 0:00:21]} h6 {[%emt 0:00:58]} 8. Be3 {[%emt 0:02:17]} c4 {[%emt 0:02:53]} 9. Nbd2 {[%emt 0:03:51]} Nge7 {[%emt 0:01:51]} 10. b3 {[%emt 0:01:08]} b5 {[%emt 0:02:36]} 11. b4 {[%emt 0:09:50]} Bh7 {[%emt 0:02:30]} 12. a4 {[%emt 0:01:02]} a6 {[%emt 0:02:28]} 13. axb5 {[%emt 0:00:36]} axb5 {[%emt 0:00:41]} 14. Rxa8 {[%emt 0:00:38]} Qxa8 {[%emt 0:00:37]} 15. Qa1 {[%emt 0:00:14]} Qa7 {[%emt 0:07:00]} 16. Qxa7 {[%emt 0:00:41]} Nxa7 {[%emt 0:00:07]} 17. Ra1 {[%emt 0:00:06]} Nec6 {[%emt 0:00:36]} 18. Ra6 {[%emt 0:05:21]} Be7 {[%emt 0:02:22]} 19. h3 {[%emt 0:02:53]} Bc2 {[%emt 0:04:04]} 20. Ra1 {[%emt 0:03:16]} O-O {[%emt 0:01:29]} 21. Ra2 {[%emt 0:06:38]} Bf5 {[%emt 0:01:26]} 22. Bd1 {[%emt 0:03:15]} Rb8 {[%emt 0:12:51]} 23. Bc2 {[%emt 0:00:43]} Bxc2 {[%emt 0:00:36]} 24. Rxc2 {[%emt 0:00:12]} Kh7 {[%emt 0:07:38]} 25. Ra2 {[%emt 0:00:33]} Rb7 {[%emt 0:05:49]} 26. Ra6 {[%emt 0:00:56]} Nb8 {[%emt 0:43:06]} 27. Ra2 {[%emt 0:03:57]} Nac6 {[%emt 0:00:00]} 28. Kh2 {[%emt 0:02:07]} g5 {[%emt 0:00:00]} 29. Kg3 {[%emt 0:00:30]} f5 {[%emt 0:00:00]} 30. exf6 {[%emt 0:00:26]} Bd6+ {[%emt 0:00:00]} 31. Kg4 {[%emt 0:03:15]} Kg6 {[%emt 0:00:00]} 32. Ng1 {[%emt 0:00:28]} h5+ {[%emt 0:00:00]} 33. Kf3 {[%emt 0:00:17]} Kxf6 {[%emt 0:00:00]} 34. g4 {[%emt 0:00:51]} hxg4+ {[%emt 0:00:00]} 35. Kxg4 {[%emt 0:03:47]} Kg6 {[%emt 0:00:00]} 36. Ngf3 {[%emt 0:04:11]} e5 {[%emt 0:00:00]} 37. dxe5 {[%emt 0:06:32]} Nxe5+ {[%emt 0:00:00]} 38. Nxe5+ {[%emt 0:00:55]} Bxe5 {[%emt 0:00:00]} 39. Ra3 {[%emt 0:01:55]} 1/2-1/2

[Event "FIDE WCCC Open-08 2024"]
[Site "Montesilvano"]
[Date "2024.11.20"]
[Round "6.36"]
[White "Sverrisson, Dagur"]
[Black "Le Doan, Minh Thuc"]
[Result "0-1"]
[ECO "B25"]
[WhiteElo "1449"]
[BlackElo "1677"]
[Annotator "NA RC"]
[PlyCount "72"]
[EventDate "2024.11.18"]
[EventType "swiss"]
[EventCountry "ITA"]
[SourceTitle "playchess.com"]
[Source "ChessBase"]
[SourceQuality "1"]
[TimeControl "5400+30"]

1. e4 {[%emt 0:00:06]} c5 {[%emt 0:00:06]} 2. Nf3 {[%emt 0:00:11]} Nc6 {[%emt 0:00:04]} 3. d3 {[%emt 0:00:23]} g6 {[%emt 0:01:17]} 4. g3 {[%emt 0:00:08]} Bg7 {[%emt 0:00:27]} 5. Bg2 {[%emt 0:00:20]} d6 {[%emt 0:00:41]} 6. O-O {[%emt 1:32:22]} Nf6 7. Nc3 {[%emt 0:00:00]} O-O {[%emt 0:01:06]} 8. Be3 {[%emt 0:01:00]} Be6 {[%emt 0:02:26]} 9. Qd2 {[%emt 0:00:00]} Ng4 {[%emt 0:01:26]} 10. Ng5 {[%emt 0:00:00]} Bd7 {[%emt 0:00:59]} 11. Bf4 {[%emt 0:00:00]} e5 {[%emt 0:00:55]} 12. Be3 {[%emt 0:00:00]} Nxe3 {[%emt 0:01:38]} 13. Qxe3 {[%emt 0:00:00]} Nd4 {[%emt 0:00:49]} 14. Rac1 {[%emt 0:00:00]} Bc6 {[%emt 0:12:54]} 15. Nd5 {[%emt 0:00:00]} Bxd5 {[%emt 0:02:55]} 16. exd5 {[%emt 0:00:00]} Bh6 {[%emt 0:02:40]} 17. f4 {[%emt 0:00:00]} exf4 {[%emt 0:00:07]} 18. gxf4 {[%emt 0:00:00]} Re8 {[%emt 0:00:07]} 19. Qf2 {[%emt 0:00:00]} Ne2+ {[%emt 0:00:05]} 20. Kh1 {[%emt 0:00:00]} Nxc1 {[%emt 0:00:18]} 21. Rxc1 {[%emt 0:00:00]} Bxg5 {[%emt 0:00:34]} 22. fxg5 {[%emt 0:00:00]} Qxg5 {[%emt 0:00:12]} 23. Rf1 {[%emt 0:00:00]} f5 {[%emt 0:01:07]} 24. h4 {[%emt 0:00:00]} Qe3 {[%emt 0:01:24]} 25. Qxe3 {[%emt 0:00:00]} Rxe3 {[%emt 0:01:40]} 26. h5 {[%emt 0:00:00]} Rae8 {[%emt 0:00:39]} 27. hxg6 {[%emt 0:00:00]} hxg6 {[%emt 0:01:01]} 28. Rf2 {[%emt 0:00:00]} Re2 {[%emt 0:01:31]} 29. Rf3 {[%emt 0:00:00]} Rxc2 {[%emt 0:01:37]} 30. Rh3 {[%emt 0:00:00]} Rxb2 {[%emt 0:00:15]} 31. Rh4 {[%emt 0:00:00]} Re1+ {[%emt 0:00:14]} 32. Kh2 {[%emt 0:00:00]} Ree2 {[%emt 0:00:10]} 33. Kh1 {[%emt 0:00:00]} Rxg2 {[%emt 0:00:23]} 34. Rh3 {[%emt 0:00:00]} f4 {[%emt 0:01:08]} 35. a4 {[%emt 0:00:00]} Rgc2 {[%emt 0:00:17]} 36. a5 {[%emt 0:00:00]} Rb1# {[%emt 0:00:04]} 0-1

[Event "FIDE WCCC Open-08 2024"]
[Site "Montesilvano"]
[Date "2024.11.20"]
[Round "6.37"]
[White "Kuncoro, Harvey"]
[Black "Ok, Miro"]
[Result "0-1"]
[ECO "B21"]
[WhiteElo "1432"]
[BlackElo "1656"]
[Annotator "NA RC"]
[PlyCount "92"]
[EventDate "2024.11.18"]
[EventType "swiss"]
[EventCountry "ITA"]
[SourceTitle "playchess.com"]
[Source "ChessBase"]
[SourceQuality "1"]
[TimeControl "5400+30"]

1. e4 {[%emt 0:00:04]} c5 {[%emt 0:01:18]} 2. d4 {[%emt 0:00:12]} cxd4 {[%emt 0:00:20]} 3. Qxd4 {[%emt 0:00:09]} Nc6 {[%emt 0:00:06]} 4. Qd3 {[%emt 0:00:10]} Nf6 {[%emt 0:00:54]} 5. Nc3 {[%emt 0:00:17]} e6 {[%emt 0:03:03]} 6. Bf4 {[%emt 0:00:12]} d6 {[%emt 0:02:44]} 7. O-O-O {[%emt 0:00:28]} e5 {[%emt 0:01:18]} 8. Bg5 {[%emt 0:00:24]} h6 {[%emt 0:00:42]} 9. Bxf6 {[%emt 0:01:35]} Qxf6 {[%emt 0:00:21]} 10. Nd5 {[%emt 0:04:36]} Qd8 {[%emt 0:00:21]} 11. Ne2 {[%emt 0:03:51]} Be6 {[%emt 0:01:16]} 12. g3 {[%emt 0:05:32]} Rc8 {[%emt 0:01:02]} 13. Kb1 {[%emt 0:00:42]} Qa5 {[%emt 0:02:28]} 14. Qd2 {[%emt 0:02:17]} Bxd5 {[%emt 0:07:00]} 15. Qxd5 {[%emt 0:04:03]} b5 {[%emt 0:01:56]} 16. Qd2 {[%emt 0:06:17]} Be7 {[%emt 0:02:22]} 17. Bh3 {[%emt 0:01:33]} Rc7 {[%emt 0:01:21]} 18. Qxa5 {[%emt 0:02:03]} Nxa5 {[%emt 0:02:15]} 19. Nc3 {[%emt 0:03:04]} a6 {[%emt 0:02:46]} 20. Nd5 {[%emt 0:00:52]} Rc6 {[%emt 0:02:25]} 21. Bf1 {[%emt 0:02:48]} Nc4 {[%emt 0:01:45]} 22. Nb4 {[%emt 0:01:14]} Rb6 {[%emt 0:01:24]} 23. Nd5 {[%emt 0:03:14]} Rb7 {[%emt 0:00:01]} 24. Bg2 {[%emt 0:01:45]} Nb6 {[%emt 0:01:22]} 25. Ne3 {[%emt 0:03:54]} g6 {[%emt 0:01:16]} 26. f4 {[%emt 0:00:32]} O-O {[%emt 0:02:55]} 27. Nd5 {[%emt 0:00:36]} Nc4 {[%emt 0:01:38]} 28. b3 {[%emt 0:01:06]} Na3+ {[%emt 0:00:53]} 29. Kb2 {[%emt 0:01:23]} b4 {[%emt 0:00:28]} 30. Nxb4 {[%emt 0:02:36]} Rxb4 {[%emt 0:01:29]} 31. Kxa3 {[%emt 0:00:55]} d5 {[%emt 0:01:06]} 32. exd5 {[%emt 0:01:03]} Rb6+ {[%emt 0:02:38]} 33. Kb2 {[%emt 0:00:26]} exf4 {[%emt 0:02:06]} 34. gxf4 {[%emt 0:01:15]} Rf6 {[%emt 0:00:37]} 35. Rd4 {[%emt 0:00:34]} Bd6 {[%emt 0:02:23]} 36. h3 {[%emt 0:02:58]} g5 {[%emt 0:00:31]} 37. fxg5 {[%emt 0:04:59]} Rf2 {[%emt 0:00:31]} 38. Rg4 {[%emt 0:00:48]} h5 {[%emt 0:00:26]} 39. Rh4 {[%emt 0:01:17]} Rxg2 {[%emt 0:00:20]} 40. Rxh5 {[%emt 0:02:19]} Rc8 {[%emt 0:01:28]} 41. Rf1 {[%emt 0:15:30]} Rcxc2+ {[%emt 0:01:10]} 42. Kb1 {[%emt 0:00:24]} Rxa2 {[%emt 0:01:53]} 43. Rf6 {[%emt 0:00:31]} Be5 {[%emt 0:00:48]} 44. Rxa6 {[%emt 0:02:07]} Rxa6 {[%emt 0:00:19]} 45. Rh8+ {[%emt 0:01:03]} Bxh8 {[%emt 0:00:14]} 46. d6 {[%emt 0:00:35]} Ra1# {[%emt 0:00:14]} 0-1

[Event "FIDE WCCC Open-08 2024"]
[Site "Montesilvano"]
[Date "2024.11.20"]
[Round "6.38"]
[White "Huzela, Lukyan"]
[Black "Lee, David J"]
[Result "1-0"]
[ECO "C56"]
[WhiteElo "1651"]
[BlackElo "1446"]
[Annotator "NA RC"]
[PlyCount "57"]
[EventDate "2024.11.18"]
[EventType "swiss"]
[EventCountry "ITA"]
[SourceTitle "playchess.com"]
[Source "ChessBase"]
[SourceQuality "1"]
[TimeControl "5400+30"]

1. e4 {[%emt 0:00:01]} e5 {[%emt 0:00:56]} 2. d4 {[%emt 0:00:06]} exd4 {[%emt 0:00:41]} 3. Nf3 {[%emt 0:00:02]} Nc6 {[%emt 0:01:21]} 4. Bc4 {[%emt 0:00:08]} Nf6 {[%emt 0:00:14]} 5. O-O {[%emt 0:00:04]} Nxe4 {[%emt 0:03:07]} 6. Re1 {[%emt 0:00:00]} d5 {[%emt 0:00:08]} 7. Bxd5 {[%emt 0:00:06]} Qxd5 {[%emt 0:00:19]} 8. Nc3 {[%emt 1:34:03]} Qd7 {[%emt 0:13:34]} 9. Nxe4 {[%emt 0:00:00]} Be7 {[%emt 0:00:46]} 10. Bh6 {[%emt 0:00:00]} f5 {[%emt 0:00:55]} 11. Bxg7 {[%emt 0:00:00]} fxe4 {[%emt 0:00:30]} 12. Bxh8 {[%emt 0:00:00]} exf3 {[%emt 0:00:06]} 13. Qxf3 {[%emt 0:00:00]} Qd6 {[%emt 0:14:32]} 14. Qb3 {[%emt 0:00:00]} Qg6 {[%emt 0:05:01]} 15. Rad1 {[%emt 0:00:00]} b6 {[%emt 0:07:31]} 16. Qg3 {[%emt 0:00:00]} Qxg3 {[%emt 0:06:30]} 17. hxg3 {[%emt 0:00:00]} Bf5 {[%emt 0:00:33]} 18. c3 {[%emt 0:00:00]} dxc3 {[%emt 0:00:55]} 19. Bxc3 {[%emt 0:00:00]} Kf7 {[%emt 0:02:30]} 20. Rd5 {[%emt 0:00:00]} Be6 {[%emt 0:00:54]} 21. Rh5 {[%emt 0:00:00]} Bxa2 {[%emt 0:09:42]} 22. Rxh7+ {[%emt 0:07:00]} Kg6 {[%emt 0:30:45]} 23. Rg7+ {[%emt 0:00:30]} Kh6 {[%emt 0:00:00]} 24. g4 {[%emt 0:00:00]} Rc8 {[%emt 0:00:00]} 25. Re3 {[%emt 0:00:00]} Nd4 {[%emt 0:00:00]} 26. Bxd4 {[%emt 0:00:00]} Bf6 {[%emt 0:00:00]} 27. Bxf6 {[%emt 0:00:00]} Bf7 {[%emt 0:00:00]} 28. Rh3+ {[%emt 0:00:00]} Bh5 {[%emt 0:00:00]} 29. Rxh5# {[%emt 0:00:00]} 1-0

[Event "FIDE WCCC Open-08 2024"]
[Site "Montesilvano"]
[Date "2024.11.20"]
[Round "6.39"]
[White "Cherem, Yoseph"]
[Black "Smilga, Olivers"]
[Result "1-0"]
[ECO "E11"]
[WhiteElo "1634"]
[BlackElo "1439"]
[Annotator "NA RC"]
[PlyCount "49"]
[EventDate "2024.11.18"]
[EventType "swiss"]
[EventCountry "ITA"]
[SourceTitle "playchess.com"]
[Source "ChessBase"]
[SourceQuality "1"]
[TimeControl "5400+30"]

1. d4 {[%emt 0:00:11]} Nf6 {[%emt 0:00:14]} 2. c4 {[%emt 0:00:27]} e6 {[%emt 0:00:23]} 3. Nf3 {[%emt 0:01:02]} Bb4+ {[%emt 0:01:30]} 4. Nbd2 {[%emt 0:00:33]} d5 {[%emt 0:01:20]} 5. a3 {[%emt 0:00:15]} Bxd2+ {[%emt 0:00:34]} 6. Qxd2 {[%emt 0:00:16]} O-O {[%emt 0:02:43]} 7. e3 {[%emt 0:00:31]} b6 {[%emt 0:02:10]} 8. b4 {[%emt 0:00:29]} a5 {[%emt 0:04:44]} 9. b5 {[%emt 0:00:21]} dxc4 {[%emt 0:02:08]} 10. Bxc4 {[%emt 0:00:30]} Bb7 {[%emt 0:00:45]} 11. Bb2 {[%emt 0:00:46]} Ne4 {[%emt 0:04:05]} 12. Qc2 {[%emt 0:00:20]} Nd7 {[%emt 0:02:19]} 13. Bd3 {[%emt 0:01:38]} Ndf6 {[%emt 0:05:08]} 14. O-O-O {[%emt 0:03:15]} Rc8 {[%emt 0:02:35]} 15. Kb1 {[%emt 0:00:39]} Qd5 {[%emt 0:06:13]} 16. Bc4 {[%emt 0:00:19]} Qd7 {[%emt 0:00:58]} 17. Ne5 {[%emt 0:02:58]} Qe7 {[%emt 0:01:20]} 18. f3 {[%emt 0:00:39]} Nd6 {[%emt 0:01:27]} 19. Bd3 {[%emt 0:00:16]} h6 {[%emt 0:59:24]} 20. h4 {[%emt 0:15:58]} Nd5 {[%emt 0:00:00]} 21. Rhe1 {[%emt 0:01:08]} Rfd8 {[%emt 0:00:00]} 22. Bh7+ {[%emt 0:01:23]} Kh8 {[%emt 0:00:00]} 23. Bg6 {[%emt 0:00:20]} Rf8 {[%emt 0:00:00]} 24. Bxf7 {[%emt 0:00:59]} Qd8 {[%emt 0:00:00]} 25. Ng6+ {[%emt 0:00:11]} 1-0

[Event "FIDE WCCC Open-08 2024"]
[Site "Montesilvano"]
[Date "2024.11.20"]
[Round "6.40"]
[White "Schimming, Wilhelm"]
[Black "Kakagiannis, Stylianos"]
[Result "1/2-1/2"]
[ECO "A20"]
[WhiteElo "1628"]
[BlackElo "1423"]
[Annotator "NA RC"]
[PlyCount "52"]
[EventDate "2024.11.18"]
[EventType "swiss"]
[EventCountry "ITA"]
[SourceTitle "playchess.com"]
[Source "ChessBase"]
[SourceQuality "1"]
[TimeControl "5400+30"]

1. c4 {[%emt 0:00:02]} e5 {[%emt 0:00:07]} 2. g3 {[%emt 0:00:05]} Nf6 {[%emt 0:00:08]} 3. Bg2 {[%emt 0:00:03]} Be7 {[%emt 0:00:28]} 4. Nc3 {[%emt 0:00:08]} Bb4 {[%emt 0:00:05]} 5. Qb3 {[%emt 0:00:39]} Bxc3 {[%emt 0:02:42]} 6. Qxc3 {[%emt 0:00:06]} d6 {[%emt 0:00:19]} 7. e3 {[%emt 0:01:22]} O-O {[%emt 0:00:56]} 8. Ne2 {[%emt 0:00:03]} Re8 {[%emt 0:01:00]} 9. O-O {[%emt 0:00:23]} Nc6 {[%emt 0:04:02]} 10. d4 {[%emt 0:03:18]} Bf5 {[%emt 0:06:12]} 11. b4 {[%emt 0:00:50]} exd4 {[%emt 0:07:33]} 12. Nxd4 {[%emt 0:00:35]} Nxd4 {[%emt 0:01:04]} 13. Qxd4 {[%emt 0:22:15]} Be4 {[%emt 0:03:59]} 14. Bb2 {[%emt 0:00:35]} Bxg2 {[%emt 0:03:51]} 15. Kxg2 {[%emt 0:00:02]} Qd7 {[%emt 0:02:14]} 16. Qh4 {[%emt 0:04:37]} Re4 {[%emt 0:03:24]} 17. Qg5 {[%emt 0:05:34]} Rg4 {[%emt 0:00:30]} 18. Qa5 {[%emt 0:00:05]} Ne8 {[%emt 0:01:42]} 19. Qd5 {[%emt 0:01:49]} Rb8 {[%emt 0:13:10]} 20. h3 {[%emt 0:02:01]} Rg6 {[%emt 0:03:35]} 21. Rad1 {[%emt 0:02:18]} Nf6 {[%emt 0:08:56]} 22. Bxf6 {[%emt 0:00:06]} Rxf6 {[%emt 0:00:12]} 23. c5 {[%emt 0:00:25]} Rf5 {[%emt 0:04:33]} 24. Qd3 {[%emt 0:00:33]} Rf6 {[%emt 0:03:31]} 25. Rd2 {[%emt 0:01:36]} h6 {[%emt 0:00:40]} 26. Qe4 {[%emt 0:01:52]} Re6 {[%emt 0:01:46]} 1/2-1/2

[Event "FIDE WCCC Open-08 2024"]
[Site "Montesilvano"]
[Date "2024.11.20"]
[Round "6.41"]
[White "Khantulga, Tuvshinbayar"]
[Black "Senthilkumar, Tharveen"]
[Result "1-0"]
[ECO "B33"]
[WhiteElo "1611"]
[BlackElo "1411"]
[Annotator "NA RC"]
[PlyCount "137"]
[EventDate "2024.11.18"]
[EventType "swiss"]
[EventCountry "ITA"]
[SourceTitle "playchess.com"]
[Source "ChessBase"]
[SourceQuality "1"]
[TimeControl "5400+30"]

1. e4 {[%emt 0:00:03]} c5 {[%emt 0:00:07]} 2. Nf3 {[%emt 0:00:04]} Nc6 {[%emt 0:00:15]} 3. d4 {[%emt 0:00:09]} cxd4 {[%emt 0:00:20]} 4. Nxd4 {[%emt 0:00:10]} Nf6 {[%emt 0:00:13]} 5. Nc3 {[%emt 0:00:05]} e5 {[%emt 0:00:06]} 6. Ndb5 {[%emt 0:00:04]} d6 {[%emt 0:00:18]} 7. Bg5 {[%emt 0:00:05]} a6 {[%emt 0:00:22]} 8. Na3 {[%emt 0:00:07]} b5 {[%emt 0:00:09]} 9. Nd5 {[%emt 0:00:05]} Qa5+ {[%emt 0:00:26]} 10. Bd2 {[%emt 0:00:42]} Qd8 {[%emt 0:00:13]} 11. Bd3 {[%emt 0:00:29]} Be7 {[%emt 0:00:21]} 12. c4 {[%emt 0:01:25]} bxc4 {[%emt 0:00:35]} 13. Nxc4 {[%emt 0:00:11]} O-O {[%emt 0:00:53]} 14. O-O {[%emt 0:02:28]} Be6 {[%emt 0:02:24]} 15. Ncb6 {[%emt 0:02:06]} Rb8 {[%emt 0:01:37]} 16. Rc1 {[%emt 0:02:35]} Rxb6 {[%emt 0:01:54]} 17. Nxb6 {[%emt 0:00:30]} Qxb6 {[%emt 0:00:27]} 18. b3 {[%emt 0:00:47]} Qb7 {[%emt 0:01:41]} 19. b4 {[%emt 0:03:41]} Nd4 {[%emt 0:01:08]} 20. Be3 {[%emt 0:01:29]} Qxb4 {[%emt 0:02:38]} 21. Rb1 {[%emt 0:00:51]} Qc5 {[%emt 0:01:11]} 22. Rb7 {[%emt 0:02:32]} Bd8 {[%emt 0:02:57]} 23. Qa4 {[%emt 0:02:07]} Qc6 {[%emt 0:01:37]} 24. Qxc6 {[%emt 0:01:46]} Nxc6 {[%emt 0:00:18]} 25. Rc1 {[%emt 0:00:19]} Nd4 {[%emt 0:00:43]} 26. Bxd4 {[%emt 0:01:14]} exd4 {[%emt 0:00:33]} 27. a3 {[%emt 0:00:46]} Ba5 {[%emt 0:01:43]} 28. Rc6 {[%emt 0:00:47]} Rd8 {[%emt 0:01:11]} 29. f3 {[%emt 0:01:14]} Ne8 {[%emt 0:04:07]} 30. Bxa6 {[%emt 0:00:47]} f5 {[%emt 0:01:43]} 31. exf5 {[%emt 0:01:21]} Bd5 {[%emt 0:00:56]} 32. Bc4 {[%emt 0:00:58]} Bxc4 {[%emt 0:03:45]} 33. Rxc4 {[%emt 0:00:10]} Bc3 {[%emt 0:00:35]} 34. Kf2 {[%emt 0:00:28]} d5 {[%emt 0:01:07]} 35. Rc6 {[%emt 0:03:47]} Nd6 {[%emt 0:01:52]} 36. Ra7 {[%emt 0:01:18]} Nxf5 {[%emt 0:01:44]} 37. g4 {[%emt 0:00:11]} Ne3 {[%emt 0:00:24]} 38. Rcc7 {[%emt 0:00:36]} h6 {[%emt 0:14:58]} 39. Rxg7+ {[%emt 0:00:44]} Kf8 {[%emt 0:01:09]} 40. Raf7+ {[%emt 0:01:54]} Ke8 {[%emt 0:00:37]} 41. Rh7 {[%emt 0:02:53]} Nc2 {[%emt 0:00:50]} 42. Rc7 {[%emt 0:00:33]} d3 {[%emt 0:07:48]} 43. Rxc3 {[%emt 0:01:21]} d2 {[%emt 0:00:26]} 44. Ke2 {[%emt 0:00:05]} d4 {[%emt 0:00:50]} 45. Rh8+ {[%emt 0:00:22]} Ke7 {[%emt 0:00:17]} 46. Rc7+ {[%emt 0:00:52]} Kd6 {[%emt 0:00:28]} 47. Rxd8+ {[%emt 0:00:41]} Kxc7 {[%emt 0:00:17]} 48. Rh8 {[%emt 0:00:10]} Kd6 {[%emt 0:00:43]} 49. Kxd2 {[%emt 0:00:13]} Nxa3 {[%emt 0:00:13]} 50. Rxh6+ {[%emt 0:00:22]} Kd5 {[%emt 0:00:11]} 51. Rh5+ {[%emt 0:00:52]} Kc4 {[%emt 0:00:18]} 52. g5 {[%emt 0:00:35]} Nb1+ {[%emt 0:00:08]} 53. Kc1 {[%emt 0:00:19]} Kd3 {[%emt 0:00:23]} 54. Kxb1 {[%emt 0:00:30]} Ke2 {[%emt 0:00:18]} 55. Rh6 {[%emt 0:00:17]} d3 {[%emt 0:00:31]} 56. Rd6 {[%emt 0:00:07]} d2 {[%emt 0:00:10]} 57. Rxd2+ {[%emt 0:00:07]} Kxd2 {[%emt 0:00:09]} 58. g6 {[%emt 0:00:01]} Ke3 {[%emt 0:00:13]} 59. g7 {[%emt 0:00:06]} Kxf3 {[%emt 0:00:15]} 60. g8=Q {[%emt 0:00:04]} Kf2 {[%emt 0:00:20]} 61. Qe6 {[%emt 0:00:20]} Kg2 {[%emt 0:00:23]} 62. Qe3 {[%emt 0:00:25]} Kxh2 {[%emt 0:00:16]} 63. Qf3 {[%emt 0:00:02]} Kg1 {[%emt 0:00:24]} 64. Kc2 {[%emt 0:00:11]} Kh2 {[%emt 0:00:15]} 65. Qg4 {[%emt 0:00:12]} Kh1 {[%emt 0:00:16]} 66. Kd2 {[%emt 0:00:04]} Kh2 {[%emt 0:00:31]} 67. Ke2 {[%emt 0:00:06]} Kh1 {[%emt 0:00:17]} 68. Kf2 {[%emt 0:00:02]} Kh2 {[%emt 0:00:16]} 69. Qg2# {[%emt 0:00:23]} 1-0